[Event "Early-Titled-Tuesday-Blitz-March-05-2024"]
[Site "Chess.com"]
[Date "2024.03.05"]
[Round "6"]
[White "francyIM"]
[Black "nihalsarin"]
[Result "0-1"]
[WhiteElo "2771"]
[BlackElo "3183"]
[TimeControl "180+1"]
[EndTime "9:09:20 PST"]
[Termination "nihalsarin won by resignation"]

1. d3 {[%clk 0:02:58]} 1... b5 {[%clk 0:02:58.8]} 2. Nf3 {[%clk 0:02:58.1]} 2...
Bb7 {[%clk 0:02:59.2]} 3. g3 {[%clk 0:02:58.1]} 3... Bxf3 {[%clk 0:02:58.7]} 4.
exf3 {[%clk 0:02:59]} 4... Nc6 {[%clk 0:02:58.5]} 5. d4 {[%clk 0:02:58.4]} 5...
Rb8 {[%clk 0:02:58.1]} 6. d5 {[%clk 0:02:58]} 6... Ne5 {[%clk 0:02:58.5]} 7. Bg2
{[%clk 0:02:56.4]} 7... Nf6 {[%clk 0:02:57.6]} 8. O-O {[%clk 0:02:55.2]} 8... e6
{[%clk 0:02:52.5]} 9. Qd4 {[%clk 0:02:50.6]} 9... Nc4 {[%clk 0:02:49.3]} 10.
dxe6 {[%clk 0:02:47.9]} 10... fxe6 {[%clk 0:02:49.8]} 11. b3 {[%clk 0:02:42.2]}
11... c5 {[%clk 0:02:49.7]} 12. Qd1 {[%clk 0:02:37.9]} 12... Nb6 {[%clk
0:02:46]} 13. a4 {[%clk 0:02:34.8]} 13... bxa4 {[%clk 0:02:46.1]} 14. bxa4
{[%clk 0:02:35.2]} 14... Be7 {[%clk 0:02:46.4]} 15. a5 {[%clk 0:02:35.4]} 15...
Nbd5 {[%clk 0:02:46.3]} 16. Nd2 {[%clk 0:02:28.8]} 16... O-O {[%clk 0:02:42.4]}
17. Nc4 {[%clk 0:02:28.5]} 17... Rb4 {[%clk 0:02:41.8]} 18. Qd3 {[%clk
0:02:27.2]} 18... Rb8 {[%clk 0:02:29.8]} 19. c3 {[%clk 0:02:20.5]} 19... Rb3
{[%clk 0:02:29.6]} 20. Bd2 {[%clk 0:02:17.1]} 20... Qb8 {[%clk 0:02:29.3]} 21.
Rfb1 {[%clk 0:02:12.5]} 21... Qb5 {[%clk 0:02:29.1]} 22. Bf1 {[%clk 0:02:10.2]}
22... Rb8 {[%clk 0:02:25.5]} 23. Rxb3 {[%clk 0:02:06.7]} 23... Qxb3 {[%clk
0:02:26.4]} 24. Na3 {[%clk 0:01:50.1]} 24... c4 {[%clk 0:02:06]} 25. Nxc4 {[%clk
0:01:48.1]} 25... Bc5 {[%clk 0:02:06.6]} 26. Be1 {[%clk 0:01:39.8]} 26... Ne7
{[%clk 0:01:53.5]} 27. Nd2 {[%clk 0:01:30.3]} 27... Qd5 {[%clk 0:01:51.5]} 28.
Qc2 {[%clk 0:01:25.2]} 28... Nc6 {[%clk 0:01:48.8]} 29. Bc4 {[%clk 0:01:23.9]}
29... Qh5 {[%clk 0:01:46.6]} 30. Be2 {[%clk 0:01:20.4]} 30... Rf8 {[%clk
0:01:35.6]} 31. Kg2 {[%clk 0:01:19.5]} 31... d5 {[%clk 0:01:34.9]} 32. Qa4
{[%clk 0:01:12.1]} 32... Ne5 {[%clk 0:01:32.3]} 33. Qb5 {[%clk 0:01:09.4]} 33...
Ned7 {[%clk 0:01:20.7]} 34. f4 {[%clk 0:01:08.6]} 34... Qg6 {[%clk 0:01:19.6]}
35. Qd3 {[%clk 0:01:06.9]} 35... Qf7 {[%clk 0:01:19.6]} 36. c4 {[%clk
0:01:03.5]} 36... e5 {[%clk 0:01:11.5]} 37. cxd5 {[%clk 0:00:58.3]} 37... exf4
{[%clk 0:01:12.1]} 38. Nb3 {[%clk 0:00:45.7]} 38... Ne5 {[%clk 0:01:04.1]} 39.
Qd1 {[%clk 0:00:41]} 39... Nxd5 {[%clk 0:00:56.5]} 40. Nxc5 {[%clk 0:00:33.4]}
40... f3+ {[%clk 0:00:56.6]} 41. Bxf3 {[%clk 0:00:31.1]} 41... Nxf3 {[%clk
0:00:57.5]} 42. Ra3 {[%clk 0:00:20.3]} 42... Nf4+ {[%clk 0:00:44.6]} 43. gxf4
{[%clk 0:00:15.3]} 43... Qg6+ {[%clk 0:00:44.8]} 44. Kf1 {[%clk 0:00:15.7]}
44... Nxh2+ {[%clk 0:00:40.4]} 45. Ke2 {[%clk 0:00:15.8]} 45... Qh5+ {[%clk
0:00:39.4]} 46. Kd2 {[%clk 0:00:15.6]} 46... Qxc5 {[%clk 0:00:30.8]} 47. Qb3+
{[%clk 0:00:13.5]} 47... Kh8 {[%clk 0:00:31]} 48. Qe3 {[%clk 0:00:13.5]} 48...
Nf1+ {[%clk 0:00:30.3]} 0-1

[Event "Early-Titled-Tuesday-Blitz-March-05-2024"]
[Site "Chess.com"]
[Date "2024.03.05"]
[Round "6"]
[White "Chernov_Mikhail"]
[Black "rhungaski"]
[Result "1/2-1/2"]
[WhiteElo "2385"]
[BlackElo "2593"]
[TimeControl "180+1"]
[EndTime "9:09:21 PST"]
[Termination "Game drawn by repetition"]

1. e4 {[%clk 0:03:00.9]} 1... e6 {[%clk 0:02:57.8]} 2. d4 {[%clk 0:03:00.8]}
2... d5 {[%clk 0:02:58.3]} 3. Nc3 {[%clk 0:03:01.3]} 3... h6 {[%clk 0:02:58.3]}
4. Nf3 {[%clk 0:03:00.3]} 4... Nf6 {[%clk 0:02:58]} 5. Bd3 {[%clk 0:02:59.9]}
5... Bb4 {[%clk 0:02:57.7]} 6. e5 {[%clk 0:02:57.5]} 6... Ne4 {[%clk 0:02:58.1]}
7. Bd2 {[%clk 0:02:57.5]} 7... Nxd2 {[%clk 0:02:55]} 8. Qxd2 {[%clk 0:02:57.2]}
8... c5 {[%clk 0:02:55.7]} 9. a3 {[%clk 0:02:54.3]} 9... Qa5 {[%clk 0:02:52.5]}
10. dxc5 {[%clk 0:02:43.6]} 10... Nd7 {[%clk 0:02:38.2]} 11. O-O {[%clk
0:02:11.6]} 11... Bxc3 {[%clk 0:02:38.2]} 12. bxc3 {[%clk 0:02:12.5]} 12... Nxc5
{[%clk 0:02:35.6]} 13. c4 {[%clk 0:02:10.5]} 13... Qxd2 {[%clk 0:02:35]} 14.
Nxd2 {[%clk 0:02:11.4]} 14... d4 {[%clk 0:02:21.9]} 15. Nb3 {[%clk 0:02:09.5]}
15... Nxb3 {[%clk 0:02:03]} 16. cxb3 {[%clk 0:02:10.4]} 16... Ke7 {[%clk
0:02:02.5]} 17. Rfd1 {[%clk 0:02:06.5]} 17... Rd8 {[%clk 0:02:01.8]} 18. Rd2
{[%clk 0:02:05.1]} 18... Bd7 {[%clk 0:01:32.2]} 19. Rad1 {[%clk 0:02:00.2]}
19... f6 {[%clk 0:01:12.9]} 20. f4 {[%clk 0:01:58.9]} 20... g5 {[%clk
0:01:11.7]} 21. g3 {[%clk 0:01:58.7]} 21... gxf4 {[%clk 0:01:11.7]} 22. gxf4
{[%clk 0:01:59.6]} 22... Rg8+ {[%clk 0:01:11.4]} 23. Rg2 {[%clk 0:01:42.2]}
23... fxe5 {[%clk 0:01:12.3]} 24. fxe5 {[%clk 0:01:41.4]} 24... Bc6 {[%clk
0:01:12.2]} 25. Rg3 {[%clk 0:01:37.8]} 25... Rxg3+ {[%clk 0:01:06.9]} 26. hxg3
{[%clk 0:01:38.7]} 26... Rg8 {[%clk 0:01:07.3]} 27. Kf2 {[%clk 0:01:36.5]} 27...
Rg5 {[%clk 0:01:08.2]} 28. Bc2 {[%clk 0:01:26.1]} 28... Rh5 {[%clk 0:01:05]} 29.
Bg6 {[%clk 0:01:00.3]} 29... Rh2+ {[%clk 0:00:59.6]} 30. Ke1 {[%clk 0:01:00.6]}
30... Rh1+ {[%clk 0:00:51.7]} 31. Kd2 {[%clk 0:01:00.7]} 31... Rh3 {[%clk
0:00:51.9]} 32. Rg1 {[%clk 0:00:57.3]} 32... Rh2+ {[%clk 0:00:52.1]} 33. Kd3
{[%clk 0:00:52.4]} 33... Rb2 {[%clk 0:00:51.7]} 34. b4 {[%clk 0:00:52.7]} 34...
Rb3+ {[%clk 0:00:43.9]} 35. Kxd4 {[%clk 0:00:52.9]} 35... Rxa3 {[%clk
0:00:44.8]} 36. b5 {[%clk 0:00:52.9]} 36... Bd7 {[%clk 0:00:33]} 37. Be4 {[%clk
0:00:52.7]} 37... b6 {[%clk 0:00:32.6]} 38. Rh1 {[%clk 0:00:51]} 38... Rxg3
{[%clk 0:00:32.5]} 39. Rxh6 {[%clk 0:00:51.6]} 39... Rg7 {[%clk 0:00:33.3]} 40.
Rh8 {[%clk 0:00:45.7]} 40... Be8 {[%clk 0:00:29.9]} 41. Bc6 {[%clk 0:00:39]}
41... Rg4+ {[%clk 0:00:29.3]} 42. Kc3 {[%clk 0:00:39.1]} 42... Rg3+ {[%clk
0:00:26.8]} 43. Kb4 {[%clk 0:00:28.1]} 43... Bg6 {[%clk 0:00:27.7]} 44. Ra8
{[%clk 0:00:21.6]} 44... Bc2 {[%clk 0:00:27.8]} 45. Rxa7+ {[%clk 0:00:21.8]}
45... Kf8 {[%clk 0:00:20.4]} 46. Ra3 {[%clk 0:00:22.7]} 46... Rg5 {[%clk
0:00:18.6]} 47. Re3 {[%clk 0:00:22.5]} 47... Ke7 {[%clk 0:00:18.7]} 48. Kc3
{[%clk 0:00:19.1]} 48... Bf5 {[%clk 0:00:18.8]} 49. Kb4 {[%clk 0:00:18.8]} 49...
Bc2 {[%clk 0:00:18.6]} 50. Re2 {[%clk 0:00:17.9]} 50... Bd3 {[%clk 0:00:18.4]}
51. Re3 {[%clk 0:00:18.6]} 51... Bc2 {[%clk 0:00:19]} 1/2-1/2

[Event "Early-Titled-Tuesday-Blitz-March-05-2024"]
[Site "Chess.com"]
[Date "2024.03.05"]
[Round "6"]
[White "KoningKobe"]
[Black "ZuraTqebuchava"]
[Result "0-1"]
[WhiteElo "2404"]
[BlackElo "2256"]
[TimeControl "180+1"]
[EndTime "9:09:23 PST"]
[Termination "ZuraTqebuchava won by resignation"]

1. d4 {[%clk 0:03:00.9]} 1... g6 {[%clk 0:03:00.2]} 2. Nf3 {[%clk 0:03:00.3]}
2... Bg7 {[%clk 0:03:00.7]} 3. g3 {[%clk 0:03:00.9]} 3... d6 {[%clk 0:03:00.7]}
4. Bg2 {[%clk 0:03:01.2]} 4... Nf6 {[%clk 0:03:00.7]} 5. O-O {[%clk 0:03:01.5]}
5... O-O {[%clk 0:03:01]} 6. b3 {[%clk 0:03:01.8]} 6... c6 {[%clk 0:02:59.7]} 7.
Bb2 {[%clk 0:03:02.3]} 7... Bg4 {[%clk 0:02:59.1]} 8. c4 {[%clk 0:03:02.4]} 8...
a5 {[%clk 0:02:58.7]} 9. a3 {[%clk 0:02:58.5]} 9... Nbd7 {[%clk 0:02:44.1]} 10.
h3 {[%clk 0:02:55.4]} 10... Bxf3 {[%clk 0:02:43.8]} 11. Bxf3 {[%clk 0:02:56.3]}
11... d5 {[%clk 0:02:33.4]} 12. Nc3 {[%clk 0:02:54.5]} 12... e6 {[%clk
0:02:33.1]} 13. Qc2 {[%clk 0:02:51.1]} 13... h5 {[%clk 0:02:25]} 14. Rad1 {[%clk
0:02:48.4]} 14... Qe7 {[%clk 0:02:23.1]} 15. e4 {[%clk 0:02:44.9]} 15... dxe4
{[%clk 0:02:17.4]} 16. Nxe4 {[%clk 0:02:45.8]} 16... Nxe4 {[%clk 0:02:17.3]} 17.
Bxe4 {[%clk 0:02:46.7]} 17... h4 {[%clk 0:02:12.7]} 18. Bg2 {[%clk 0:02:39.1]}
18... hxg3 {[%clk 0:02:11.1]} 19. fxg3 {[%clk 0:02:40]} 19... Qg5 {[%clk
0:02:07]} 20. Rd3 {[%clk 0:02:39.4]} 20... Rad8 {[%clk 0:01:56.2]} 21. Rdf3
{[%clk 0:02:30.3]} 21... b5 {[%clk 0:01:42.4]} 22. Kh2 {[%clk 0:02:25.2]} 22...
bxc4 {[%clk 0:01:38.4]} 23. bxc4 {[%clk 0:02:26.1]} 23... c5 {[%clk 0:01:32.6]}
24. dxc5 {[%clk 0:02:24.3]} 24... Bxb2 {[%clk 0:01:14.3]} 25. Qxb2 {[%clk
0:02:25.2]} 25... Nxc5 {[%clk 0:01:13.6]} 26. Qb5 {[%clk 0:02:21.8]} 26... Qe7
{[%clk 0:01:09.6]} 27. Qxa5 {[%clk 0:02:20.3]} 27... Ne4 {[%clk 0:01:09.1]} 28.
Qe5 {[%clk 0:02:16.6]} 28... Nd2 {[%clk 0:01:06.4]} 29. R1f2 {[%clk 0:02:11.4]}
29... Nxf3+ {[%clk 0:01:05.8]} 30. Rxf3 {[%clk 0:02:12.3]} 30... Rd2 {[%clk
0:01:04.5]} 31. c5 {[%clk 0:01:20.8]} 31... Qb7 {[%clk 0:00:58.7]} 32. Qc3
{[%clk 0:01:08.1]} 32... Qd5 {[%clk 0:00:33.3]} 33. c6 {[%clk 0:01:00.5]} 33...
Rc8 {[%clk 0:00:29.8]} 34. Qf6 {[%clk 0:00:28.9]} 34... Rf8 {[%clk 0:00:21.2]}
35. Rf2 {[%clk 0:00:21.5]} 35... Rxf2 {[%clk 0:00:19.3]} 36. Qxf2 {[%clk
0:00:22.4]} 36... Qd6 {[%clk 0:00:16.5]} 37. a4 {[%clk 0:00:20.5]} 37... Qc7
{[%clk 0:00:13.9]} 38. Qc5 {[%clk 0:00:19.8]} 38... Ra8 {[%clk 0:00:11.6]} 39.
Qb5 {[%clk 0:00:15.9]} 39... Ra5 {[%clk 0:00:09.6]} 40. Qb4 {[%clk 0:00:16]}
40... Ra8 {[%clk 0:00:07.1]} 41. h4 {[%clk 0:00:15.8]} 41... Rd8 {[%clk
0:00:06.5]} 42. a5 {[%clk 0:00:12.9]} 42... Rb8 {[%clk 0:00:06.5]} 43. Qb6
{[%clk 0:00:13.6]} 43... Rxb6 {[%clk 0:00:06.7]} 0-1

[Event "Early-Titled-Tuesday-Blitz-March-05-2024"]
[Site "Chess.com"]
[Date "2024.03.05"]
[Round "6"]
[White "sokidze"]
[Black "Josetricks"]
[Result "0-1"]
[WhiteElo "2775"]
[BlackElo "2566"]
[TimeControl "180+1"]
[EndTime "9:09:24 PST"]
[Termination "Josetricks won on time"]

1. d4 {[%clk 0:03:00.9]} 1... g6 {[%clk 0:02:59.8]} 2. e4 {[%clk 0:02:59.8]}
2... Bg7 {[%clk 0:03:00.7]} 3. Nc3 {[%clk 0:02:59.6]} 3... c6 {[%clk 0:03:00.6]}
4. f4 {[%clk 0:02:59.3]} 4... d5 {[%clk 0:02:59.7]} 5. e5 {[%clk 0:02:59.8]}
5... f6 {[%clk 0:02:59.3]} 6. Nf3 {[%clk 0:02:53.3]} 6... Bg4 {[%clk 0:02:56.8]}
7. h3 {[%clk 0:02:42.7]} 7... Bxf3 {[%clk 0:02:56.5]} 8. Qxf3 {[%clk 0:02:43.6]}
8... Nh6 {[%clk 0:02:56.7]} 9. g4 {[%clk 0:02:20.2]} 9... O-O {[%clk 0:02:52.8]}
10. e6 {[%clk 0:02:10.2]} 10... Qb6 {[%clk 0:02:48.8]} 11. Qf2 {[%clk
0:02:00.9]} 11... c5 {[%clk 0:02:44.3]} 12. f5 {[%clk 0:01:57.6]} 12... cxd4
{[%clk 0:02:37.6]} 13. Ne2 {[%clk 0:01:53.8]} 13... Nc6 {[%clk 0:02:29.2]} 14.
Ng3 {[%clk 0:01:42.1]} 14... gxf5 {[%clk 0:02:18.8]} 15. gxf5 {[%clk 0:01:38.9]}
15... Ne5 {[%clk 0:02:13.9]} 16. Nh5 {[%clk 0:01:33.7]} 16... d3 {[%clk
0:02:01.6]} 17. Nxg7 {[%clk 0:01:06.3]} 17... Qb4+ {[%clk 0:01:45.1]} 18. c3
{[%clk 0:00:46.7]} 18... Qe4+ {[%clk 0:01:40.7]} 19. Kd1 {[%clk 0:00:45.5]}
19... Qxh1 {[%clk 0:01:34.3]} 20. Bxh6 {[%clk 0:00:46.1]} 20... Kh8 {[%clk
0:01:12.4]} 21. Qg2 {[%clk 0:00:38.4]} 21... Qxg2 {[%clk 0:01:09.3]} 22. Bxg2
{[%clk 0:00:39.3]} 22... Rad8 {[%clk 0:01:09.5]} 23. b3 {[%clk 0:00:18.1]} 23...
Rg8 {[%clk 0:01:06.5]} 24. Kd2 {[%clk 0:00:18]} 24... Rxg7 {[%clk 0:01:05.9]}
25. Bxg7+ {[%clk 0:00:18.9]} 25... Kxg7 {[%clk 0:01:06.8]} 26. Rg1 {[%clk
0:00:18.5]} 26... Kh6 {[%clk 0:00:50.7]} 27. Bh1 {[%clk 0:00:18.6]} 27... b5
{[%clk 0:00:46.6]} 28. Ke3 {[%clk 0:00:16.1]} 28... a5 {[%clk 0:00:43.8]} 29. a3
{[%clk 0:00:10]} 29... a4 {[%clk 0:00:41.9]} 30. b4 {[%clk 0:00:09.6]} 30... Rc8
{[%clk 0:00:36.8]} 31. Kd2 {[%clk 0:00:08.9]} 31... d4 {[%clk 0:00:35.6]} 32.
cxd4 {[%clk 0:00:07.4]} 32... Rc2+ {[%clk 0:00:33.1]} 33. Ke3 {[%clk 0:00:07.3]}
33... Re2+ {[%clk 0:00:33.1]} 34. Kf4 {[%clk 0:00:07.7]} 34... d2 {[%clk
0:00:25.6]} 35. Rd1 {[%clk 0:00:02.5]} 35... Nc4 {[%clk 0:00:25.4]} 36. Bf3
{[%clk 0:00:02.5]} 36... Re1 {[%clk 0:00:19]} 37. d5 {[%clk 0:00:03.1]} 37...
Kg7 {[%clk 0:00:12.9]} 38. Kg3 {[%clk 0:00:03.5]} 38... Rxd1 {[%clk 0:00:12.5]}
39. Bxd1 {[%clk 0:00:03.9]} 39... Nb2 {[%clk 0:00:11.6]} 40. d6 {[%clk
0:00:03.6]} 40... exd6 {[%clk 0:00:10.9]} 0-1

[Event "Early-Titled-Tuesday-Blitz-March-05-2024"]
[Site "Chess.com"]
[Date "2024.03.05"]
[Round "6"]
[White "matagordo"]
[Black "MaxLeto"]
[Result "1-0"]
[WhiteElo "2251"]
[BlackElo "2458"]
[TimeControl "180+1"]
[EndTime "9:09:24 PST"]
[Termination "matagordo won on time"]

1. d4 {[%clk 0:03:00.9]} 1... h6 {[%clk 0:02:55.7]} 2. Bf4 {[%clk 0:02:59.9]}
2... g6 {[%clk 0:02:56.6]} 3. Nc3 {[%clk 0:02:58.1]} 3... a6 {[%clk 0:02:56.7]}
4. e4 {[%clk 0:02:57.5]} 4... b6 {[%clk 0:02:57.3]} 5. Nf3 {[%clk 0:02:46.4]}
5... Bb7 {[%clk 0:02:57.6]} 6. Qd2 {[%clk 0:02:45.1]} 6... Bg7 {[%clk
0:02:57.9]} 7. h4 {[%clk 0:02:42.7]} 7... d6 {[%clk 0:02:57.7]} 8. O-O-O {[%clk
0:02:41.4]} 8... e6 {[%clk 0:02:58.2]} 9. Bd3 {[%clk 0:02:38.5]} 9... Nd7 {[%clk
0:02:58.5]} 10. g4 {[%clk 0:02:33.8]} 10... Ne7 {[%clk 0:02:57.5]} 11. Rhe1
{[%clk 0:02:27.2]} 11... Nc6 {[%clk 0:02:56.3]} 12. Be3 {[%clk 0:02:25]} 12...
b5 {[%clk 0:02:31.7]} 13. Kb1 {[%clk 0:02:22]} 13... Na5 {[%clk 0:02:27.1]} 14.
Ng1 {[%clk 0:02:14.8]} 14... Nb6 {[%clk 0:02:24.3]} 15. Nce2 {[%clk 0:01:57.3]}
15... Nac4 {[%clk 0:02:22.6]} 16. Qc1 {[%clk 0:01:57.7]} 16... Qxh4 {[%clk
0:02:19.6]} 17. Nf3 {[%clk 0:01:50.9]} 17... Qxg4 {[%clk 0:02:18.5]} 18. Nh2
{[%clk 0:01:46.7]} 18... Qg2 {[%clk 0:02:10.3]} 19. Nf4 {[%clk 0:01:31.5]} 19...
Qxh2 {[%clk 0:00:36.9]} 20. Rh1 {[%clk 0:01:30.7]} 20... Qxh1 {[%clk 0:00:37.3]}
21. Rxh1 {[%clk 0:01:29.6]} 21... Nxe3 {[%clk 0:00:32.2]} 22. Qxe3 {[%clk
0:01:25.6]} 22... Nd7 {[%clk 0:00:29.2]} 23. c4 {[%clk 0:01:18.3]} 23... bxc4
{[%clk 0:00:16.9]} 24. Bxc4 {[%clk 0:01:19.2]} 24... c5 {[%clk 0:00:16.2]} 25.
dxc5 {[%clk 0:01:14.7]} 25... Nxc5 {[%clk 0:00:17.1]} 26. f3 {[%clk 0:01:07.3]}
26... Rb8 {[%clk 0:00:17.1]} 27. Nd3 {[%clk 0:00:56.5]} 27... Na4 {[%clk
0:00:04.5]} 28. Bb3 {[%clk 0:00:52.8]} 28... Bc6 {[%clk 0:00:04.8]} 29. Qa7
{[%clk 0:00:45.5]} 29... O-O {[%clk 0:00:04.7]} 30. Rd1 {[%clk 0:00:40.1]} 30...
Bb5 {[%clk 0:00:04.1]} 31. Bxa4 {[%clk 0:00:31.3]} 31... Bxa4 {[%clk 0:00:02.4]}
32. b3 {[%clk 0:00:31.7]} 32... Bb5 {[%clk 0:00:02.7]} 33. Nf2 {[%clk
0:00:24.2]} 33... Rfd8 {[%clk 0:00:03.3]} 34. Rxd6 {[%clk 0:00:17.1]} 34... Rxd6
{[%clk 0:00:02.4]} 35. Qxb8+ {[%clk 0:00:16.2]} 35... Bf8 {[%clk 0:00:03.3]} 36.
Ng4 {[%clk 0:00:11.4]} 36... Rd2 {[%clk 0:00:03]} 37. Qe5 {[%clk 0:00:01.2]} 1-0

[Event "Early-Titled-Tuesday-Blitz-March-05-2024"]
[Site "Chess.com"]
[Date "2024.03.05"]
[Round "6"]
[White "Incognito_Knight"]
[Black "Jumbo"]
[Result "0-1"]
[WhiteElo "2716"]
[BlackElo "2935"]
[TimeControl "180+1"]
[EndTime "9:09:28 PST"]
[Termination "Jumbo won on time"]

1. e4 {[%clk 0:03:00.9]} 1... c5 {[%clk 0:03:00]} 2. d4 {[%clk 0:03:00.5]} 2...
cxd4 {[%clk 0:02:59.7]} 3. Qxd4 {[%clk 0:03:01.4]} 3... Nc6 {[%clk 0:02:59.3]}
4. Qd3 {[%clk 0:03:01.8]} 4... Nf6 {[%clk 0:02:59.4]} 5. Nc3 {[%clk 0:03:01.8]}
5... g6 {[%clk 0:03:00]} 6. Nf3 {[%clk 0:03:01.9]} 6... Bg7 {[%clk 0:02:58.4]}
7. Be2 {[%clk 0:03:02.3]} 7... O-O {[%clk 0:02:57.9]} 8. O-O {[%clk 0:03:02.6]}
8... d6 {[%clk 0:02:49.4]} 9. Nd5 {[%clk 0:03:01.6]} 9... Ng4 {[%clk 0:02:39.4]}
10. c3 {[%clk 0:02:57.6]} 10... e6 {[%clk 0:02:28.7]} 11. Ne3 {[%clk 0:02:40.5]}
11... Nf6 {[%clk 0:02:26.2]} 12. Rd1 {[%clk 0:02:36.7]} 12... Qc7 {[%clk
0:02:17.5]} 13. Qxd6 {[%clk 0:02:24.2]} 13... Qxd6 {[%clk 0:02:18.4]} 14. Rxd6
{[%clk 0:02:24.7]} 14... Nxe4 {[%clk 0:02:18.1]} 15. Rd1 {[%clk 0:02:25.4]}
15... b6 {[%clk 0:02:02.4]} 16. Nd2 {[%clk 0:02:10.4]} 16... Nf6 {[%clk
0:01:54.6]} 17. Ndc4 {[%clk 0:02:05.4]} 17... Ba6 {[%clk 0:01:52]} 18. Bf3
{[%clk 0:02:05.4]} 18... Rac8 {[%clk 0:01:52.2]} 19. Nd6 {[%clk 0:02:04]} 19...
Rc7 {[%clk 0:01:52.1]} 20. Nec4 {[%clk 0:01:50.2]} 20... Nd5 {[%clk 0:01:27.8]}
21. Bg5 {[%clk 0:01:29.3]} 21... Rd7 {[%clk 0:01:19.5]} 22. a4 {[%clk 0:01:13]}
22... h6 {[%clk 0:00:59.9]} 23. Bh4 {[%clk 0:01:11.8]} 23... g5 {[%clk
0:00:53.2]} 24. Bg3 {[%clk 0:01:12.1]} 24... Rfd8 {[%clk 0:00:53.7]} 25. h4
{[%clk 0:01:02.1]} 25... gxh4 {[%clk 0:00:48.5]} 26. Bh2 {[%clk 0:00:51.7]}
26... Nce7 {[%clk 0:00:47.8]} 27. Nb5 {[%clk 0:00:45]} 27... Ng6 {[%clk
0:00:36.1]} 28. Ncd6 {[%clk 0:00:33.8]} 28... Bf8 {[%clk 0:00:33.6]} 29. Ne4
{[%clk 0:00:30.5]} 29... Be7 {[%clk 0:00:30.3]} 30. Rd4 {[%clk 0:00:22.9]} 30...
f5 {[%clk 0:00:27.8]} 31. Nd2 {[%clk 0:00:19.8]} 31... Bc5 {[%clk 0:00:25.6]}
32. Rd3 {[%clk 0:00:14.8]} 32... e5 {[%clk 0:00:21.1]} 33. Rxd5 {[%clk
0:00:07.2]} 33... Rxd5 {[%clk 0:00:20.8]} 34. Bxd5+ {[%clk 0:00:08.1]} 34...
Rxd5 {[%clk 0:00:21.2]} 35. Nc4 {[%clk 0:00:05]} 35... f4 {[%clk 0:00:16.5]} 36.
g3 {[%clk 0:00:01.7]} 36... hxg3 {[%clk 0:00:16]} 37. Kg2 {[%clk 0:00:02.1]}
37... gxh2 {[%clk 0:00:15.9]} 38. Kxh2 {[%clk 0:00:03]} 38... Kg7 {[%clk
0:00:16.1]} 39. Rg1 {[%clk 0:00:03.2]} 39... Kf6 {[%clk 0:00:16.4]} 40. Rf1
{[%clk 0:00:02.6]} 40... Bxb5 {[%clk 0:00:16.2]} 41. axb5 {[%clk 0:00:03]} 41...
e4 {[%clk 0:00:16.4]} 42. Kg2 {[%clk 0:00:03]} 42... Kf5 {[%clk 0:00:16.9]} 43.
Rh1 {[%clk 0:00:02.4]} 43... f3+ {[%clk 0:00:15.1]} 44. Kg3 {[%clk 0:00:02.5]}
44... Bd6+ {[%clk 0:00:15.5]} 45. Kh3 {[%clk 0:00:02]} 45... Bf4 {[%clk
0:00:15]} 0-1

[Event "Early-Titled-Tuesday-Blitz-March-05-2024"]
[Site "Chess.com"]
[Date "2024.03.05"]
[Round "6"]
[White "moro182"]
[Black "BilodeauA"]
[Result "0-1"]
[WhiteElo "2830"]
[BlackElo "3004"]
[TimeControl "180+1"]
[EndTime "9:09:29 PST"]
[Termination "BilodeauA won by checkmate"]

1. d4 {[%clk 0:03:00.9]} 1... d5 {[%clk 0:02:59.6]} 2. Bf4 {[%clk 0:02:59.5]}
2... Nf6 {[%clk 0:02:57.6]} 3. e3 {[%clk 0:02:59.7]} 3... e6 {[%clk 0:02:58.2]}
4. Nf3 {[%clk 0:02:59.2]} 4... Bd6 {[%clk 0:02:56.7]} 5. Nbd2 {[%clk 0:02:58.4]}
5... O-O {[%clk 0:02:56.3]} 6. Bd3 {[%clk 0:02:57.5]} 6... Nc6 {[%clk
0:02:56.3]} 7. c3 {[%clk 0:02:52.9]} 7... Qe7 {[%clk 0:02:48.4]} 8. Ne5 {[%clk
0:02:43.9]} 8... Nd7 {[%clk 0:02:48.5]} 9. Ndf3 {[%clk 0:02:26.7]} 9... f6
{[%clk 0:02:44.5]} 10. Nxc6 {[%clk 0:01:39.3]} 10... bxc6 {[%clk 0:02:45.4]} 11.
Bxd6 {[%clk 0:01:38.5]} 11... cxd6 {[%clk 0:02:46.1]} 12. e4 {[%clk 0:01:38.3]}
12... dxe4 {[%clk 0:02:41.9]} 13. Bxe4 {[%clk 0:01:38.4]} 13... d5 {[%clk
0:02:42.6]} 14. Bc2 {[%clk 0:01:29.5]} 14... e5 {[%clk 0:02:42.2]} 15. O-O
{[%clk 0:01:27.2]} 15... e4 {[%clk 0:02:42.3]} 16. Nd2 {[%clk 0:01:27.3]} 16...
f5 {[%clk 0:02:40.9]} 17. c4 {[%clk 0:01:27.4]} 17... Nf6 {[%clk 0:02:37.2]} 18.
Re1 {[%clk 0:01:27.7]} 18... f4 {[%clk 0:02:24.1]} 19. cxd5 {[%clk 0:01:24.1]}
19... cxd5 {[%clk 0:02:24]} 20. Bb3 {[%clk 0:01:20.7]} 20... Kh8 {[%clk
0:02:23.3]} 21. Rc1 {[%clk 0:01:08.1]} 21... Qb4 {[%clk 0:02:06.6]} 22. Nf1
{[%clk 0:00:52.7]} 22... a5 {[%clk 0:02:06.6]} 23. Rc5 {[%clk 0:00:22.3]} 23...
Be6 {[%clk 0:01:34.3]} 24. a3 {[%clk 0:00:15.5]} 24... Qb6 {[%clk 0:01:32.9]}
25. a4 {[%clk 0:00:13.1]} 25... Rfb8 {[%clk 0:01:29.3]} 26. Rb5 {[%clk
0:00:13.4]} 26... Qd6 {[%clk 0:01:29.8]} 27. Qd2 {[%clk 0:00:10.9]} 27... h6
{[%clk 0:01:21.7]} 28. Rc1 {[%clk 0:00:09.7]} 28... Bd7 {[%clk 0:01:20.9]} 29.
Rxb8+ {[%clk 0:00:07.3]} 29... Rxb8 {[%clk 0:01:21.8]} 30. Bd1 {[%clk
0:00:05.9]} 30... g5 {[%clk 0:00:52.1]} 31. Rc5 {[%clk 0:00:05.6]} 31... e3
{[%clk 0:00:48.3]} 32. fxe3 {[%clk 0:00:04.6]} 32... Ne4 {[%clk 0:00:48.8]} 33.
Qxa5 {[%clk 0:00:02.8]} 33... Nxc5 {[%clk 0:00:44.7]} 34. dxc5 {[%clk
0:00:03.7]} 34... Qe5 {[%clk 0:00:45]} 35. Qa7 {[%clk 0:00:02.2]} 35... Bc6
{[%clk 0:00:37.8]} 36. Bc2 {[%clk 0:00:01.9]} 36... Rb7 {[%clk 0:00:33.3]} 37.
Qa8+ {[%clk 0:00:02.2]} 37... Kg7 {[%clk 0:00:33.8]} 38. Qc8 {[%clk 0:00:02.9]}
38... Rc7 {[%clk 0:00:32.8]} 39. Qd8 {[%clk 0:00:03.3]} 39... fxe3 {[%clk
0:00:30.7]} 40. Ng3 {[%clk 0:00:04]} 40... e2 {[%clk 0:00:21.8]} 41. Nf5+ {[%clk
0:00:04]} 41... Kf7 {[%clk 0:00:12.2]} 42. Nd6+ {[%clk 0:00:02.9]} 42... Qxd6
{[%clk 0:00:11.5]} 43. Bg6+ {[%clk 0:00:03.5]} 43... Kg7 {[%clk 0:00:06.8]} 44.
Qxd6 {[%clk 0:00:01.3]} 44... e1=Q# {[%clk 0:00:07]} 0-1